[Event "*** Titled Tuesday Blitz"]
[Site "Chess.com"]
[Date "2021.04.27"]
[Round "4"]
[White "chesslh19"]
[Black "Trovita84"]
[Result "0-1"]
[WhiteElo "2269"]
[BlackElo "2151"]
[TimeControl "180+1"]
[EndTime "10:39:15 PDT"]
[Termination "Trovita84 won by resignation"]

1. e4 {[%clk 0:03:00.9]} 1... c6 {[%clk 0:02:59.1]} 2. d4 {[%clk 0:03:00.4]}
2... d5 {[%clk 0:02:55.2]} 3. Nd2 {[%clk 0:03:00.4]} 3... dxe4 {[%clk
0:02:54.8]} 4. Nxe4 {[%clk 0:03:01.3]} 4... Nd7 {[%clk 0:02:54.6]} 5. Ng5 {[%clk
0:02:56]} 5... Ngf6 {[%clk 0:02:50.8]} 6. Bd3 {[%clk 0:02:56]} 6... e6 {[%clk
0:02:47.7]} 7. N1f3 {[%clk 0:02:56.1]} 7... Be7 {[%clk 0:02:47.6]} 8. Qe2 {[%clk
0:02:52.1]} 8... O-O {[%clk 0:02:47.6]} 9. Bd2 {[%clk 0:02:45]} 9... c5 {[%clk
0:02:34.5]} 10. O-O-O {[%clk 0:02:39.6]} 10... cxd4 {[%clk 0:02:28.1]} 11. Nxd4
{[%clk 0:02:33.8]} 11... Nc5 {[%clk 0:02:15.5]} 12. Bc3 {[%clk 0:01:45.8]} 12...
Nxd3+ {[%clk 0:02:11.5]} 13. Rxd3 {[%clk 0:01:43.2]} 13... Qb6 {[%clk
0:02:10.5]} 14. Nf5 {[%clk 0:01:15.1]} 14... exf5 {[%clk 0:01:48.8]} 15. Qxe7
{[%clk 0:01:14.5]} 15... h6 {[%clk 0:01:15.5]} 16. Nxf7 {[%clk 0:00:32]} 16...
Be6 {[%clk 0:00:59.3]} 17. Nxh6+ {[%clk 0:00:09.2]} 17... Kh7 {[%clk 0:00:53.4]}
18. Rh3 {[%clk 0:00:03.6]} 18... f4 {[%clk 0:00:47.6]} 19. Bxf6 {[%clk
0:00:03.1]} 19... Rxf6 {[%clk 0:00:44.9]} 20. Ng4+ {[%clk 0:00:03.4]} 20... Kg6
{[%clk 0:00:43.5]} 21. Nxf6 {[%clk 0:00:02.9]} 21... gxf6 {[%clk 0:00:44.4]} 22.
Rh4 {[%clk 0:00:02.2]} 22... Qxf2 {[%clk 0:00:39]} 23. Qxe6 {[%clk 0:00:01.3]}
23... Qxh4 {[%clk 0:00:38.6]} 24. Qe2 {[%clk 0:00:01.5]} 24... Qg5 {[%clk
0:00:34.9]} 25. g3 {[%clk 0:00:01.8]} 25... f3+ {[%clk 0:00:34.9]} 26. Qd2
{[%clk 0:00:01.7]} 26... Rd8 {[%clk 0:00:28.1]} 27. Qxg5+ {[%clk 0:00:01.5]}
27... Kxg5 {[%clk 0:00:29]} 28. Rf1 {[%clk 0:00:01.4]} 28... Kg4 {[%clk
0:00:29.5]} 29. c4 {[%clk 0:00:01.1]} 29... Rd4 {[%clk 0:00:28.9]} 30. b3 {[%clk
0:00:01.2]} 30... Rd3 {[%clk 0:00:27.5]} 31. Kc2 {[%clk 0:00:01.4]} 31... Re3
{[%clk 0:00:27.9]} 32. Kd2 {[%clk 0:00:01.7]} 32... Re2+ {[%clk 0:00:28]} 33.
Kd3 {[%clk 0:00:02.2]} 33... Rxh2 {[%clk 0:00:28.4]} 34. b4 {[%clk 0:00:02.7]}
34... Kxg3 {[%clk 0:00:27.8]} 35. c5 {[%clk 0:00:03.1]} 35... Kg2 {[%clk
0:00:25.8]} 36. Rc1 {[%clk 0:00:02.2]} 36... f2 {[%clk 0:00:25.9]} 37. b5 {[%clk
0:00:02.5]} 37... Rh1 {[%clk 0:00:22.8]} 38. Rf1 {[%clk 0:00:03.4]} 38... Rxf1
{[%clk 0:00:21.5]} 0-1

[Event "*** Titled Tuesday Blitz"]
[Site "Chess.com"]
[Date "2021.04.27"]
[Round "4"]
[White "YaWaleriy"]
[Black "aljado"]
[Result "1-0"]
[WhiteElo "2264"]
[BlackElo "2036"]
[TimeControl "180+1"]
[EndTime "10:39:17 PDT"]
[Termination "YaWaleriy won on time"]

1. d4 {[%clk 0:03:00.9]} 1... d5 {[%clk 0:02:59.3]} 2. Nf3 {[%clk 0:03:00.3]}
2... Nf6 {[%clk 0:02:58.8]} 3. c4 {[%clk 0:03:00.1]} 3... c6 {[%clk 0:02:58]} 4.
Nc3 {[%clk 0:02:59.7]} 4... e6 {[%clk 0:02:49]} 5. e3 {[%clk 0:02:57.9]} 5...
Nbd7 {[%clk 0:02:48.2]} 6. Qc2 {[%clk 0:02:57.1]} 6... Bd6 {[%clk 0:02:46.4]} 7.
Be2 {[%clk 0:02:56.3]} 7... O-O {[%clk 0:02:46.7]} 8. b3 {[%clk 0:02:56.4]} 8...
h6 {[%clk 0:02:44.8]} 9. O-O {[%clk 0:02:54.6]} 9... Re8 {[%clk 0:02:44.8]} 10.
Bb2 {[%clk 0:02:54.3]} 10... e5 {[%clk 0:02:41.3]} 11. cxd5 {[%clk 0:02:45.8]}
11... cxd5 {[%clk 0:02:37.2]} 12. dxe5 {[%clk 0:02:43.3]} 12... Nxe5 {[%clk
0:02:36.9]} 13. Nb5 {[%clk 0:02:39.4]} 13... Bb8 {[%clk 0:02:32.1]} 14. Rac1
{[%clk 0:02:31]} 14... Nxf3+ {[%clk 0:02:27.9]} 15. Bxf3 {[%clk 0:02:29.5]}
15... Be6 {[%clk 0:02:27.9]} 16. g3 {[%clk 0:02:00.4]} 16... Qb6 {[%clk
0:02:05.2]} 17. Nd4 {[%clk 0:01:55.4]} 17... Bd6 {[%clk 0:01:55.1]} 18. Nf5
{[%clk 0:01:44.6]} 18... Bf8 {[%clk 0:01:52.8]} 19. Rfd1 {[%clk 0:01:37.2]}
19... Rac8 {[%clk 0:01:50.8]} 20. Qb1 {[%clk 0:01:35.9]} 20... Rxc1 {[%clk
0:01:12.6]} 21. Rxc1 {[%clk 0:01:33.9]} 21... Qa5 {[%clk 0:01:05.3]} 22. Nxh6+
{[%clk 0:01:26.9]} 22... gxh6 {[%clk 0:01:00.7]} 23. Bxf6 {[%clk 0:01:25.7]}
23... Rc8 {[%clk 0:00:47.2]} 24. Rxc8 {[%clk 0:01:23.6]} 24... Bxc8 {[%clk
0:00:46.5]} 25. Kg2 {[%clk 0:01:04.2]} 25... Qb6 {[%clk 0:00:23.6]} 26. Bd4
{[%clk 0:01:00]} 26... Qe6 {[%clk 0:00:22.6]} 27. Qc2 {[%clk 0:00:56]} 27...
Qh3+ {[%clk 0:00:18.6]} 28. Kg1 {[%clk 0:00:55.8]} 28... Bf5 {[%clk 0:00:18.5]}
29. Qc7 {[%clk 0:00:50.5]} 29... Bd3 {[%clk 0:00:16.2]} 30. Bg2 {[%clk
0:00:46.4]} 30... Qg4 {[%clk 0:00:15.9]} 31. h3 {[%clk 0:00:45.6]} 31... Qd1+
{[%clk 0:00:14]} 32. Kh2 {[%clk 0:00:45.5]} 32... Bg7 {[%clk 0:00:10.3]} 33.
Qd8+ {[%clk 0:00:40.8]} 33... Kh7 {[%clk 0:00:09.4]} 34. Qxd5 {[%clk 0:00:34.6]}
34... Bg6 {[%clk 0:00:04.6]} 35. Qxb7 {[%clk 0:00:23.2]} 35... Qe2 {[%clk
0:00:02]} 36. Bxg7 {[%clk 0:00:19.5]} 1-0

[Event "*** Titled Tuesday Blitz"]
[Site "Chess.com"]
[Date "2021.04.27"]
[Round "4"]
[White "MITerryble"]
[Black "Nozdrachev_Vladislav"]
[Result "1-0"]
[WhiteElo "2892"]
[BlackElo "2710"]
[TimeControl "180+1"]
[EndTime "10:39:18 PDT"]
[Termination "MITerryble won by resignation"]

1. e4 {[%clk 0:03:00.9]} 1... e5 {[%clk 0:02:59.5]} 2. Nf3 {[%clk 0:03:01]} 2...
Nc6 {[%clk 0:02:59.7]} 3. c3 {[%clk 0:03:01.1]} 3... Nf6 {[%clk 0:02:58.9]} 4.
d4 {[%clk 0:03:01]} 4... exd4 {[%clk 0:02:53.1]} 5. e5 {[%clk 0:03:01]} 5... Ne4
{[%clk 0:02:50.2]} 6. Qe2 {[%clk 0:03:00.4]} 6... Nc5 {[%clk 0:02:22.1]} 7. cxd4
{[%clk 0:02:59.5]} 7... Ne6 {[%clk 0:02:22.1]} 8. d5 {[%clk 0:02:59.6]} 8...
Ncd4 {[%clk 0:02:14.6]} 9. Nxd4 {[%clk 0:02:59.2]} 9... Nxd4 {[%clk 0:02:14.3]}
10. Qe4 {[%clk 0:02:58.8]} 10... Bb4+ {[%clk 0:02:04.5]} 11. Nc3 {[%clk
0:02:54.7]} 11... c5 {[%clk 0:02:03.8]} 12. d6 {[%clk 0:02:38.9]} 12... O-O
{[%clk 0:02:01.7]} 13. Bd3 {[%clk 0:02:38.3]} 13... f5 {[%clk 0:01:53.3]} 14.
Qd5+ {[%clk 0:02:35.7]} 14... Kh8 {[%clk 0:01:52.6]} 15. a3 {[%clk 0:02:32]}
15... Qa5 {[%clk 0:01:44.7]} 16. Bd2 {[%clk 0:02:26.6]} 16... Ne6 {[%clk
0:01:17.5]} 17. O-O {[%clk 0:02:17.9]} 17... Bxc3 {[%clk 0:01:16]} 18. Bxc3
{[%clk 0:02:18.8]} 18... Qd8 {[%clk 0:01:12.3]} 19. b4 {[%clk 0:02:09.9]} 19...
cxb4 {[%clk 0:01:10.3]} 20. axb4 {[%clk 0:02:09.1]} 20... a6 {[%clk 0:01:05.4]}
21. b5 {[%clk 0:01:43.6]} 21... a5 {[%clk 0:01:01.2]} 22. Rfb1 {[%clk
0:01:41.4]} 22... Nf4 {[%clk 0:00:52.3]} 23. Qf3 {[%clk 0:01:41.5]} 23... Nxd3
{[%clk 0:00:52.2]} 24. Qxd3 {[%clk 0:01:42.4]} 24... b6 {[%clk 0:00:52.4]} 25.
Rc1 {[%clk 0:01:29.4]} 25... Bb7 {[%clk 0:00:51.4]} 26. Bd4 {[%clk 0:01:29.9]}
26... f4 {[%clk 0:00:43]} 27. Rc7 {[%clk 0:01:10.6]} 27... Bd5 {[%clk
0:00:38.5]} 28. Bxb6 {[%clk 0:01:09.4]} 28... Be6 {[%clk 0:00:33.3]} 29. f3
{[%clk 0:01:06.5]} 29... a4 {[%clk 0:00:32.1]} 30. Bd4 {[%clk 0:01:02.5]} 30...
Qg5 {[%clk 0:00:25.7]} 31. b6 {[%clk 0:01:00.8]} 31... a3 {[%clk 0:00:19.5]} 32.
b7 {[%clk 0:01:00.3]} 32... Rab8 {[%clk 0:00:19]} 33. Rxa3 {[%clk 0:00:57.7]}
33... h6 {[%clk 0:00:18.7]} 34. Rac3 {[%clk 0:00:49.6]} 34... Bh3 {[%clk
0:00:17.4]} 35. Qe2 {[%clk 0:00:44.7]} 35... Kh7 {[%clk 0:00:17.3]} 36. Ba7
{[%clk 0:00:39.5]} 36... Rfe8 {[%clk 0:00:14.8]} 37. R3c5 {[%clk 0:00:32.5]}
37... Bf5 {[%clk 0:00:12.5]} 38. Bxb8 {[%clk 0:00:31.3]} 38... Rxb8 {[%clk
0:00:12.6]} 39. Qb2 {[%clk 0:00:25.7]} 39... Qg6 {[%clk 0:00:11.6]} 40. Rc8
{[%clk 0:00:19.9]} 1-0

[Event "*** Titled Tuesday Blitz"]
[Site "Chess.com"]
[Date "2021.04.27"]
[Round "4"]
[White "Pelopidass"]
[Black "chessdjw"]
[Result "0-1"]
[WhiteElo "2548"]
[BlackElo "2735"]
[TimeControl "180+1"]
[EndTime "10:39:21 PDT"]
[Termination "chessdjw won by resignation"]

1. d4 {[%clk 0:02:59.8]} 1... Nf6 {[%clk 0:02:58.9]} 2. Nf3 {[%clk 0:03:00.3]}
2... d5 {[%clk 0:02:56.5]} 3. c4 {[%clk 0:02:59.5]} 3... e6 {[%clk 0:02:56.4]}
4. e3 {[%clk 0:02:59.4]} 4... a6 {[%clk 0:02:52.9]} 5. b3 {[%clk 0:02:58.6]}
5... c5 {[%clk 0:02:47.4]} 6. Nbd2 {[%clk 0:02:58]} 6... Nc6 {[%clk 0:02:45.7]}
7. Bb2 {[%clk 0:02:55.4]} 7... cxd4 {[%clk 0:02:36.5]} 8. exd4 {[%clk
0:02:56.3]} 8... Be7 {[%clk 0:02:28.2]} 9. Bd3 {[%clk 0:02:54.2]} 9... O-O
{[%clk 0:02:26.5]} 10. O-O {[%clk 0:02:53.9]} 10... b6 {[%clk 0:02:22.8]} 11.
Rc1 {[%clk 0:02:50.4]} 11... Bb7 {[%clk 0:02:22.7]} 12. Re1 {[%clk 0:02:43.4]}
12... dxc4 {[%clk 0:02:14]} 13. bxc4 {[%clk 0:02:44.3]} 13... Rc8 {[%clk
0:02:13.8]} 14. Qe2 {[%clk 0:02:39.9]} 14... Re8 {[%clk 0:02:11.7]} 15. a3
{[%clk 0:02:24]} 15... Bf8 {[%clk 0:02:11.1]} 16. Bb1 {[%clk 0:02:19.9]} 16...
g6 {[%clk 0:02:05.6]} 17. Ne4 {[%clk 0:02:11.8]} 17... Bg7 {[%clk 0:01:56.5]}
18. Neg5 {[%clk 0:02:09.1]} 18... Na5 {[%clk 0:01:46.8]} 19. Ne5 {[%clk
0:02:03.5]} 19... Rc7 {[%clk 0:01:34.3]} 20. h4 {[%clk 0:01:40.2]} 20... Nc6
{[%clk 0:01:31.3]} 21. Rcd1 {[%clk 0:01:33.4]} 21... Nxe5 {[%clk 0:01:24.3]} 22.
dxe5 {[%clk 0:01:34.3]} 22... Nd7 {[%clk 0:01:24.5]} 23. Qe3 {[%clk 0:01:16.5]}
23... Qa8 {[%clk 0:00:53.1]} 24. Qf4 {[%clk 0:01:06.9]} 24... Nc5 {[%clk
0:00:49.5]} 25. f3 {[%clk 0:01:02.8]} 25... Rd8 {[%clk 0:00:40.3]} 26. h5 {[%clk
0:01:01.6]} 26... Rcd7 {[%clk 0:00:36.8]} 27. Rxd7 {[%clk 0:00:59.5]} 27... Rxd7
{[%clk 0:00:37.7]} 28. Nxh7 {[%clk 0:00:54.3]} 28... Kxh7 {[%clk 0:00:34.1]} 29.
hxg6+ {[%clk 0:00:50.2]} 29... fxg6 {[%clk 0:00:35]} 30. Qh4+ {[%clk 0:00:50.4]}
30... Bh6 {[%clk 0:00:30.9]} 31. Qh5 {[%clk 0:00:40.4]} 31... Nd3 {[%clk
0:00:28.9]} 32. Qg4 {[%clk 0:00:32.8]} 32... Qe8 {[%clk 0:00:19.5]} 33. Rd1
{[%clk 0:00:27.7]} 33... Be3+ {[%clk 0:00:18.5]} 34. Kf1 {[%clk 0:00:24.4]}
34... Nxe5 {[%clk 0:00:14.1]} 35. Rxd7+ {[%clk 0:00:20.6]} 35... Qxd7 {[%clk
0:00:15]} 36. Bxg6+ {[%clk 0:00:17]} 36... Nxg6 {[%clk 0:00:14.3]} 37. Qh5+
{[%clk 0:00:17.5]} 37... Bh6 {[%clk 0:00:13.3]} 38. f4 {[%clk 0:00:16.2]} 38...
Qd3+ {[%clk 0:00:12.8]} 39. Kg1 {[%clk 0:00:16.2]} 39... Qe3+ {[%clk 0:00:11.6]}
40. Kh2 {[%clk 0:00:15.5]} 40... Qxf4+ {[%clk 0:00:11.6]} 0-1

[Event "*** Titled Tuesday Blitz"]
[Site "Chess.com"]
[Date "2021.04.27"]
[Round "4"]
[White "aa175"]
[Black "FeketeBarika"]
[Result "0-1"]
[WhiteElo "2424"]
[BlackElo "2260"]
[TimeControl "180+1"]
[EndTime "10:39:22 PDT"]
[Termination "FeketeBarika won on time"]

1. d4 {[%clk 0:03:00.9]} 1... Nf6 {[%clk 0:02:56.2]} 2. Bf4 {[%clk 0:02:58.3]}
2... e6 {[%clk 0:02:55.2]} 3. e3 {[%clk 0:02:58.9]} 3... c5 {[%clk 0:02:55.3]}
4. Nf3 {[%clk 0:02:59.4]} 4... b6 {[%clk 0:02:55.8]} 5. Nbd2 {[%clk 0:02:58.7]}
5... Bb7 {[%clk 0:02:56.3]} 6. Nc4 {[%clk 0:02:59.1]} 6... d6 {[%clk 0:02:55.4]}
7. c3 {[%clk 0:02:58.2]} 7... Be7 {[%clk 0:02:50.7]} 8. Bd3 {[%clk 0:02:58.6]}
8... cxd4 {[%clk 0:02:49.2]} 9. exd4 {[%clk 0:02:58.6]} 9... b5 {[%clk
0:02:47.7]} 10. Ne3 {[%clk 0:02:58.6]} 10... a6 {[%clk 0:02:47.6]} 11. a4 {[%clk
0:02:58.7]} 11... Qb6 {[%clk 0:02:37.4]} 12. axb5 {[%clk 0:02:57.1]} 12... axb5
{[%clk 0:02:38.3]} 13. Rxa8 {[%clk 0:02:56.7]} 13... Bxa8 {[%clk 0:02:39.2]} 14.
Qb3 {[%clk 0:02:56]} 14... Bc6 {[%clk 0:02:37.8]} 15. Nc4 {[%clk 0:02:13.2]}
15... Qc7 {[%clk 0:02:31.7]} 16. Na3 {[%clk 0:02:07.9]} 16... O-O {[%clk
0:02:25.1]} 17. Bxb5 {[%clk 0:01:57]} 17... Bxf3 {[%clk 0:02:23.5]} 18. gxf3
{[%clk 0:01:57.9]} 18... Qb7 {[%clk 0:02:22.8]} 19. Qd1 {[%clk 0:01:47.3]} 19...
Nh5 {[%clk 0:02:19.2]} 20. Be3 {[%clk 0:01:45.2]} 20... d5 {[%clk 0:02:05.1]}
21. Bd3 {[%clk 0:01:26]} 21... Qxb2 {[%clk 0:02:01.3]} 22. Nb5 {[%clk
0:01:25.3]} 22... Nc6 {[%clk 0:01:43.5]} 23. Rg1 {[%clk 0:01:06.2]} 23... Rb8
{[%clk 0:01:39]} 24. f4 {[%clk 0:00:38.5]} 24... Nf6 {[%clk 0:01:35.4]} 25. Bc1
{[%clk 0:00:15.6]} 25... Qa2 {[%clk 0:01:31.3]} 26. f5 {[%clk 0:00:11.6]} 26...
exf5 {[%clk 0:01:31.1]} 27. Qd2 {[%clk 0:00:01.9]} 27... Qxd2+ {[%clk
0:01:29.9]} 28. Bxd2 {[%clk 0:00:02.8]} 28... Ne4 {[%clk 0:01:30.1]} 29. f3
{[%clk 0:00:01.7]} 29... Nxd2 {[%clk 0:01:29]} 30. Kxd2 {[%clk 0:00:02.6]} 30...
g6 {[%clk 0:01:26.7]} 31. Nc7 {[%clk 0:00:02.5]} 31... Rd8 {[%clk 0:01:22.3]}
32. Bxf5 {[%clk 0:00:01.4]} 32... Bd6 {[%clk 0:01:22.5]} 33. Nb5 {[%clk
0:00:01.3]} 33... Bxh2 {[%clk 0:01:21.9]} 34. Rg2 {[%clk 0:00:02]} 34... Bf4+
{[%clk 0:01:21.8]} 35. Kc2 {[%clk 0:00:01.8]} 35... Ra8 {[%clk 0:01:19.1]} 36.
Bd3 {[%clk 0:00:02.1]} 36... Ra2+ {[%clk 0:01:18]} 37. Kb3 {[%clk 0:00:02.6]}
37... Rxg2 {[%clk 0:01:18.9]} 38. Nc7 {[%clk 0:00:02.8]} 38... Bc1 {[%clk
0:01:14.8]} 39. Nxd5 {[%clk 0:00:02.6]} 39... Rb2+ {[%clk 0:01:13.9]} 40. Kc4
{[%clk 0:00:02.5]} 40... Na5+ {[%clk 0:01:13.8]} 41. Kc5 {[%clk 0:00:03.1]}
41... Rd2 {[%clk 0:01:13.6]} 42. Bb5 {[%clk 0:00:03.2]} 42... Rf2 {[%clk
0:01:12.7]} 43. Kb6 {[%clk 0:00:03.2]} 43... Nb3 {[%clk 0:01:11.6]} 44. Bc6
{[%clk 0:00:03.6]} 44... Kg7 {[%clk 0:01:09.6]} 45. Nc7 {[%clk 0:00:03.3]} 45...
Bf4 {[%clk 0:01:08.3]} 46. Ne8+ {[%clk 0:00:02.9]} 46... Kf8 {[%clk 0:01:08]}
47. Nf6 {[%clk 0:00:03]} 47... h5 {[%clk 0:01:06.4]} 48. d5 {[%clk 0:00:02.9]}
48... h4 {[%clk 0:01:05.3]} 49. Nd7+ {[%clk 0:00:02.6]} 49... Kg7 {[%clk
0:01:04.7]} 50. c4 {[%clk 0:00:02.4]} 50... Rxf3 {[%clk 0:01:04.1]} 51. d6
{[%clk 0:00:02.4]} 51... Rd3 {[%clk 0:01:01.3]} 52. c5 {[%clk 0:00:02.5]} 52...
h3 {[%clk 0:00:55.9]} 53. Be4 {[%clk 0:00:02.3]} 53... Rd4 {[%clk 0:00:55.4]}
54. Bf3 {[%clk 0:00:02]} 54... Nxc5 {[%clk 0:00:53.2]} 55. Nxc5 {[%clk
0:00:01.3]} 55... Rxd6+ {[%clk 0:00:53.3]} 0-1

[Event "*** Titled Tuesday Blitz"]
[Site "Chess.com"]
[Date "2021.04.27"]
[Round "4"]
[White "biostatistician"]
[Black "dretch"]
[Result "0-1"]
[WhiteElo "2531"]
[BlackElo "2811"]
[TimeControl "180+1"]
[EndTime "10:39:25 PDT"]
[Termination "dretch won by resignation"]

1. d4 {[%clk 0:03:00]} 1... d5 {[%clk 0:02:58.2]} 2. Nf3 {[%clk 0:03:00.9]} 2...
Nf6 {[%clk 0:02:58.2]} 3. c4 {[%clk 0:03:01.8]} 3... c6 {[%clk 0:02:58.2]} 4.
cxd5 {[%clk 0:03:02.1]} 4... cxd5 {[%clk 0:02:58.4]} 5. Nc3 {[%clk 0:03:03]}
5... Nc6 {[%clk 0:02:57.9]} 6. Bf4 {[%clk 0:03:03.6]} 6... Nh5 {[%clk
0:02:57.4]} 7. Be5 {[%clk 0:03:02.9]} 7... e6 {[%clk 0:02:54.5]} 8. e3 {[%clk
0:03:02]} 8... Nxe5 {[%clk 0:02:48.9]} 9. Nxe5 {[%clk 0:03:01.9]} 9... Nf6
{[%clk 0:02:47.7]} 10. Bb5+ {[%clk 0:02:58.8]} 10... Bd7 {[%clk 0:02:41.6]} 11.
Qa4 {[%clk 0:02:59.1]} 11... a6 {[%clk 0:02:35.9]} 12. Bxd7+ {[%clk 0:02:56.2]}
12... Nxd7 {[%clk 0:02:36.8]} 13. Qxd7+ {[%clk 0:02:50.2]} 13... Qxd7 {[%clk
0:02:36.6]} 14. Nxd7 {[%clk 0:02:51.1]} 14... Kxd7 {[%clk 0:02:37.1]} 15. Kd2
{[%clk 0:02:52]} 15... Bb4 {[%clk 0:02:32.9]} 16. Rhc1 {[%clk 0:02:51.2]} 16...
Rac8 {[%clk 0:02:25.2]} 17. Rc2 {[%clk 0:02:49.2]} 17... Rc4 {[%clk 0:02:18]}
18. Rac1 {[%clk 0:02:48.1]} 18... b5 {[%clk 0:02:14.4]} 19. a3 {[%clk
0:02:47.8]} 19... Ba5 {[%clk 0:02:12]} 20. b3 {[%clk 0:02:40.5]} 20... Rc6
{[%clk 0:02:03.1]} 21. Kd3 {[%clk 0:02:33]} 21... Rhc8 {[%clk 0:01:50.4]} 22.
Ne2 {[%clk 0:02:29.3]} 22... Rxc2 {[%clk 0:01:48.9]} 23. Rxc2 {[%clk 0:02:30.2]}
23... Bc7 {[%clk 0:01:47.8]} 24. h3 {[%clk 0:02:28.1]} 24... Rb8 {[%clk
0:01:43.8]} 25. Nc1 {[%clk 0:02:12.5]} 25... a5 {[%clk 0:01:33.8]} 26. Kc3
{[%clk 0:01:58.1]} 26... Bd6 {[%clk 0:00:57.4]} 27. Kb2 {[%clk 0:01:57.8]} 27...
h5 {[%clk 0:00:53.3]} 28. Nd3 {[%clk 0:01:57.6]} 28... f6 {[%clk 0:00:47.9]} 29.
Nc5+ {[%clk 0:01:57.3]} 29... Ke7 {[%clk 0:00:46.7]} 30. Kc3 {[%clk 0:01:35.3]}
30... Bxc5 {[%clk 0:00:35]} 31. dxc5 {[%clk 0:01:36.2]} 31... Kd7 {[%clk
0:00:33.1]} 32. Kd4 {[%clk 0:01:30.3]} 32... Kc6 {[%clk 0:00:30.7]} 33. f4
{[%clk 0:01:30.5]} 33... b4 {[%clk 0:00:23]} 34. a4 {[%clk 0:01:25.7]} 34... Re8
{[%clk 0:00:20.7]} 35. e4 {[%clk 0:01:17.6]} 35... e5+ {[%clk 0:00:20.9]} 36.
fxe5 {[%clk 0:01:17.8]} 36... Rxe5 {[%clk 0:00:21.8]} 37. Re2 {[%clk 0:00:24.2]}
37... Rxe4+ {[%clk 0:00:21.5]} 38. Rxe4 {[%clk 0:00:24.5]} 38... dxe4 {[%clk
0:00:22.4]} 39. g4 {[%clk 0:00:24.7]} 39... hxg4 {[%clk 0:00:20.8]} 40. hxg4
{[%clk 0:00:25.4]} 40... e3 {[%clk 0:00:20.9]} 41. Kxe3 {[%clk 0:00:25.1]} 41...
Kxc5 {[%clk 0:00:21.4]} 42. Ke4 {[%clk 0:00:25.9]} 42... g6 {[%clk 0:00:21.5]}
43. g5 {[%clk 0:00:22.5]} 43... fxg5 {[%clk 0:00:20.7]} 44. Ke5 {[%clk
0:00:21.8]} 44... g4 {[%clk 0:00:20.1]} 45. Kf4 {[%clk 0:00:22.2]} 45... Kd4
{[%clk 0:00:20.6]} 46. Kxg4 {[%clk 0:00:22.9]} 46... Kc3 {[%clk 0:00:21.5]} 0-1

[Event "*** Titled Tuesday Blitz"]
[Site "Chess.com"]
[Date "2021.04.27"]
[Round "4"]
[White "Sanan_Sjugirov"]
[Black "Sergey85Rodchenkov"]
[Result "1-0"]
[WhiteElo "2973"]
[BlackElo "2516"]
[TimeControl "180+1"]
[EndTime "10:39:25 PDT"]
[Termination "Sanan_Sjugirov won by resignation"]

1. d4 {[%clk 0:03:00.8]} 1... Nf6 {[%clk 0:02:47]} 2. Nf3 {[%clk 0:02:57.8]}
2... b6 {[%clk 0:02:46.8]} 3. Bg5 {[%clk 0:02:55.4]} 3... Bb7 {[%clk 0:02:46.9]}
4. Nbd2 {[%clk 0:02:51.8]} 4... e6 {[%clk 0:02:43.8]} 5. e3 {[%clk 0:02:51.2]}
5... Be7 {[%clk 0:02:40.8]} 6. Bd3 {[%clk 0:02:50.9]} 6... d5 {[%clk 0:02:40.3]}
7. Qe2 {[%clk 0:02:47.7]} 7... O-O {[%clk 0:02:40.1]} 8. Ne5 {[%clk 0:02:45]}
8... c5 {[%clk 0:02:39.2]} 9. c3 {[%clk 0:02:44.3]} 9... Nc6 {[%clk 0:02:39]}
10. f4 {[%clk 0:02:43.6]} 10... Rc8 {[%clk 0:02:34.1]} 11. O-O {[%clk
0:02:41.5]} 11... Ne4 {[%clk 0:02:28.6]} 12. Bxe7 {[%clk 0:02:39.6]} 12... Nxe7
{[%clk 0:02:28]} 13. Rad1 {[%clk 0:02:10.3]} 13... f6 {[%clk 0:02:15.6]} 14.
Nef3 {[%clk 0:02:09.5]} 14... f5 {[%clk 0:02:06.9]} 15. Ne5 {[%clk 0:02:07.3]}
15... c4 {[%clk 0:02:03.4]} 16. Bc2 {[%clk 0:02:00.7]} 16... b5 {[%clk
0:02:03.6]} 17. a3 {[%clk 0:01:52.9]} 17... Ng6 {[%clk 0:02:00.5]} 18. Ndf3
{[%clk 0:01:47.7]} 18... Nxe5 {[%clk 0:01:58.8]} 19. Nxe5 {[%clk 0:01:48.6]}
19... a5 {[%clk 0:01:58.9]} 20. g4 {[%clk 0:01:46.5]} 20... Kh8 {[%clk
0:01:47.3]} 21. Kh1 {[%clk 0:01:35.8]} 21... g6 {[%clk 0:01:44.6]} 22. Rg1
{[%clk 0:01:32.7]} 22... Rc7 {[%clk 0:01:39.4]} 23. gxf5 {[%clk 0:01:30.2]}
23... exf5 {[%clk 0:01:39.1]} 24. Bxe4 {[%clk 0:01:26.6]} 24... dxe4 {[%clk
0:01:34.7]} 25. Rg5 {[%clk 0:01:18.1]} 25... Bd5 {[%clk 0:01:33.2]} 26. Rdg1
{[%clk 0:01:17.9]} 26... Rg7 {[%clk 0:01:23.4]} 27. h4 {[%clk 0:01:17.2]} 27...
Rfg8 {[%clk 0:01:17.5]} 28. Qh2 {[%clk 0:00:53.3]} 28... Qe7 {[%clk 0:01:15.7]}
29. h5 {[%clk 0:00:32.3]} 29... gxh5 {[%clk 0:01:15.2]} 30. Qxh5 {[%clk
0:00:33.2]} 30... Rxg5 {[%clk 0:01:13.1]} 31. Rxg5 {[%clk 0:00:33.2]} 31... Rxg5
{[%clk 0:01:07.4]} 32. fxg5 {[%clk 0:00:33.1]} 32... Kg8 {[%clk 0:01:04.5]} 33.
Kg1 {[%clk 0:00:29.3]} 33... b4 {[%clk 0:00:56.3]} 34. axb4 {[%clk 0:00:27.8]}
34... axb4 {[%clk 0:00:56.1]} 35. g6 {[%clk 0:00:25.1]} 35... hxg6 {[%clk
0:00:44.6]} 36. Qxg6+ {[%clk 0:00:16.3]} 36... Kh8 {[%clk 0:00:42.3]} 37. Qxf5
{[%clk 0:00:11.2]} 37... Qg7+ {[%clk 0:00:42.3]} 38. Kf2 {[%clk 0:00:10]} 38...
bxc3 {[%clk 0:00:37.9]} 39. Ng6+ {[%clk 0:00:06.7]} 39... Kg8 {[%clk 0:00:37.6]}
40. Qxd5+ {[%clk 0:00:05.6]} 40... Kh7 {[%clk 0:00:36.5]} 41. Qh5+ {[%clk
0:00:05.1]} 41... Kg8 {[%clk 0:00:29.4]} 42. bxc3 {[%clk 0:00:04.5]} 1-0